[Event "Stay Safe Play From Home 396"]
[Site "Emanuel Lasker Arena"]
[Date "2020.08.19"]
[Round "3"]
[White "Andy416"]
[Black "Kongle"]
[Result "0-1"]
[WhiteElo "2069"]
[BlackElo "1730"]
[Annotator "NA"]
[PlyCount "78"]
[EventDate "2020.08.19"]
[EventType "swiss (blitz)"]
[TimeControl "300"]

1. e4 {[%emt 0:00:07]} d5 {[%emt 0:00:07]} 2. exd5 {[%emt 0:00:04]} Qxd5 {[%emt 0:00:04]} 3. Nc3 {[%emt 0:00:01]} Qd6 {[%emt 0:00:01]} 4. d4 {[%emt 0:00:04]} Nf6 {[%emt 0:00:03]} 5. Nf3 {[%emt 0:00:03]} Bg4 {[%emt 0:00:02]} 6. Nb5 {[%emt 0:00:07]} Qb6 {[%emt 0:00:09]} 7. c4 {[%emt 0:00:05]} c6 {[%emt 0:00:07]} 8. c5 {[%emt 0:00:05]} Qd8 {[%emt 0:00:04]} 9. Nc3 {[%emt 0:00:08]} e6 {[%emt 0:00:03]} 10. Be2 {[%emt 0:00:04]} Be7 {[%emt 0:00:02]} 11. O-O {[%emt 0:00:04]} O-O {[%emt 0:00:01]} 12. h3 {[%emt 0:00:02]} Bh5 {[%emt 0:00:02]} 13. Bf4 {[%emt 0:00:03]} Nbd7 {[%emt 0:00:05]} 14. a4 {[%emt 0:00:05]} b6 {[%emt 0:00:03]} 15. b4 {[%emt 0:00:05]} bxc5 {[%emt 0:00:02]} 16. bxc5 {[%emt 0:00:03]} Qa5 {[%emt 0:00:07]} 17. Qd2 {[%emt 0:00:05]} h6 {[%emt 0:00:09]} 18. Nd5 {[%emt 0:00:21]} Qd8 {[%emt 0:00:10]} 19. Nxe7+ {[%emt 0:00:06]} Qxe7 {[%emt 0:00:04]} 20. Bd6 {[%emt 0:00:01]} Qd8 {[%emt 0:00:01]} 21. Bxf8 {[%emt 0:00:05]} Nxf8 {[%emt 0:00:01]} 22. Rfb1 {[%emt 0:00:07]} a5 {[%emt 0:00:07]} 23. Rb6 {[%emt 0:00:06]} Nd5 {[%emt 0:00:01]} 24. Rb2 {[%emt 0:00:09]} Nb4 {[%emt 0:00:04]} 25. Ne5 {[%emt 0:00:21]} Bxe2 {[%emt 0:00:07]} 26. Qxe2 {[%emt 0:00:04]} Qxd4 {[%emt 0:00:02]} 27. Rd1 {[%emt 0:00:15]} Qxc5 {[%emt 0:00:12]} 28. Rbd2 {[%emt 0:00:11]} Nd5 {[%emt 0:00:10]} 29. Nd3 {[%emt 0:00:10]} Qa3 {[%emt 0:00:14]} 30. Ra2 {[%emt 0:00:13]} Qb3 {[%emt 0:00:03]} 31. Nc5 {[%emt 0:00:10]} Qb4 {[%emt 0:00:12]} 32. Nd3 {[%emt 0:00:12]} Qc4 {[%emt 0:00:16]} 33. Rc2 {[%emt 0:00:12]} Nc3 {[%emt 0:00:08]} 34. Qd2 {[%emt 0:00:09]} Qxa4 {[%emt 0:00:28]} 35. Rxc3 {[%emt 0:00:05]} Rd8 {[%emt 0:00:03]} 36. Qc1 {[%emt 0:00:11]} Qd4 {[%emt 0:00:07]} 37. Rxc6 {[%emt 0:00:11]} e5 {[%emt 0:00:05]} 38. Ne1 {[%emt 0:00:12]} Qxd1 {[%emt 0:00:03]} 39. Qxd1 {[%emt 0:00:06]} Rxd1 {[%emt 0:00:02] Andy416 resigns} 0-1